[Event "Goteborg Open 2024"]
[Site "Goteborgs Schackcentrum, Vegatan 20, Gothenburg, Sweden"]
[Date "2024.08.02"]
[Round "2.11"]
[White "Lindholm, Marcus"]
[Black "Helin, Mikael"]
[Result "0-1"]
[TimeControl "15 minutes + 5 seconds per move from move one (Round 1 - 4) / 90 minutes + 30 seconds per move from move one (Round 5 - 8)"]
[BlackTitle "CM"]
[WhiteFideId "1743473"]
[BlackFideId "1703838"]
[WhiteElo "1851"]
[BlackElo "1937"]

1. d4 {[%clk 00:15:07]} {[%emt 00:00:02]} d6 {[%clk 00:15:06]} {[%emt
00:00:03]} 2. e4 {[%clk 00:15:02]} {[%emt 00:00:11]} Nf6 {[%clk 00:15:09]}
{[%emt 00:00:02]} 3. Nc3 {[%clk 00:15:05]} {[%emt 00:00:03]} Nbd7 {[%clk
00:15:12]} {[%emt 00:00:01]} 4. Nf3 {[%clk 00:15:02]} {[%emt 00:00:07]} e5
{[%clk 00:15:14]} {[%emt 00:00:04]} 5. dxe5 {[%clk 00:15:00]} {[%emt 00:00:07]}
dxe5 {[%clk 00:15:18]} {[%emt 00:00:01]} 6. Bc4 {[%clk 00:14:29]} {[%emt
00:00:36]} Be7 {[%clk 00:15:21]} {[%emt 00:00:02]} 7. O-O {[%clk 00:13:53]}
{[%emt 00:00:41]} h6 {[%clk 00:15:24]} 8. Be3 {[%clk 00:11:02]} {[%emt
00:02:59]} c6 {[%clk 00:15:25]} {[%emt 00:00:03]} 9. Qd2 {[%clk 00:10:51]}
{[%emt 00:00:16]} Qc7 {[%clk 00:15:26]} {[%emt 00:00:03]} 10. Rad1 {[%clk
00:10:36]} {[%emt 00:00:20]} b5 {[%clk 00:13:29]} {[%emt 00:02:03]} 11. Bd3
{[%clk 00:09:10]} {[%emt 00:01:32]} Nf8 {[%clk 00:13:24]} {[%emt 00:00:09]} 12.
Nh4 {[%clk 00:08:20]} {[%emt 00:00:55]} g6 {[%clk 00:12:41]} {[%emt 00:00:47]}
13. f4 {[%clk 00:07:27]} {[%emt 00:00:59]} Ng4 {[%clk 00:12:01]} {[%emt
00:00:44]} 14. g3 {[%clk 00:05:45]} {[%emt 00:01:49]} Nxe3 {[%clk 00:07:06]}
{[%emt 00:04:59]} 15. Qxe3 {[%clk 00:05:26]} {[%emt 00:00:24]} Ne6 {[%clk
00:06:53]} {[%emt 00:00:18]} 16. f5 {[%clk 00:04:59]} {[%emt 00:00:32]} Bc5
{[%clk 00:06:52]} {[%emt 00:00:07]} 17. fxe6 {[%clk 00:04:49]} {[%emt
00:00:15]} Bxe3+ {[%clk 00:06:54]} {[%emt 00:00:02]} 18. Kh1 {[%clk 00:04:53]}
Bxe6 {[%clk 00:06:52]} {[%emt 00:00:09]} 0-1

[Event "Goteborg Open 2024"]
[Site "Goteborgs Schackcentrum, Vegatan 20, Gothenburg, Sweden"]
[Date "2024.08.02"]
[Round "2.12"]
[White "Bergdahl, Daniel"]
[Black "Al Waeli, Laith"]
[Result "0-1"]
[TimeControl "15 minutes + 5 seconds per move from move one (Round 1 - 4) / 90 minutes + 30 seconds per move from move one (Round 5 - 8)"]
[BlackTitle "FM"]
[WhiteFideId "1780921"]
[BlackFideId "4801059"]
[WhiteElo "1689"]
[BlackElo "2077"]

1. e4 {[%clk 00:15:08]} d5 {[%clk 00:14:20]} {[%emt 00:00:51]} 2. exd5 {[%clk
00:15:12]} {[%emt 00:00:02]} Qxd5 {[%clk 00:14:23]} {[%emt 00:00:02]} 3. Nc3
{[%clk 00:15:14]} {[%emt 00:00:03]} Qd6 {[%clk 00:14:27]} 4. d4 {[%clk
00:15:14]} {[%emt 00:00:06]} Nf6 {[%clk 00:14:31]} 5. Nf3 {[%clk 00:15:18]}
{[%emt 00:00:02]} c6 {[%clk 00:14:34]} {[%emt 00:00:02]} 6. Bc4 {[%clk
00:15:20]} {[%emt 00:00:02]} Bg4 {[%clk 00:14:32]} {[%emt 00:00:07]} 7. Be3
{[%clk 00:15:02]} {[%emt 00:00:23]} e6 {[%clk 00:14:34]} {[%emt 00:00:03]} 8.
O-O {[%clk 00:15:03]} {[%emt 00:00:05]} Be7 {[%clk 00:14:37]} {[%emt 00:00:03]}
9. h3 {[%clk 00:15:02]} {[%emt 00:00:05]} Bh5 {[%clk 00:14:39]} {[%emt
00:00:02]} 10. a4 {[%clk 00:15:04]} {[%emt 00:00:06]} a5 {[%clk 00:14:36]}
{[%emt 00:00:06]} 11. Qe2 {[%clk 00:14:53]} {[%emt 00:00:16]} Nbd7 {[%clk
00:14:35]} {[%emt 00:00:05]} 12. Nb1 {[%clk 00:14:40]} {[%emt 00:00:18]} O-O
{[%clk 00:14:15]} {[%emt 00:00:26]} 13. Nbd2 {[%clk 00:14:36]} {[%emt
00:00:07]} Rfe8 {[%clk 00:13:45]} {[%emt 00:00:36]} 14. Bd3 {[%clk 00:14:24]}
{[%emt 00:00:17]} Qc7 {[%clk 00:13:26]} {[%emt 00:00:24]} 15. c3 {[%clk
00:13:58]} {[%emt 00:00:31]} e5 {[%clk 00:13:21]} {[%emt 00:00:11]} 16. Ne4
{[%clk 00:13:14]} {[%emt 00:00:48]} Nxe4 {[%clk 00:12:14]} {[%emt 00:01:13]} 17.
Bxe4 {[%clk 00:13:14]} {[%emt 00:00:04]} Nf6 {[%clk 00:12:17]} {[%emt
00:00:03]} 18. Qd3 {[%clk 00:12:31]} {[%emt 00:00:47]} Nxe4 {[%clk 00:12:05]}
{[%emt 00:00:17]} 19. Qxe4 {[%clk 00:12:34]} {[%emt 00:00:02]} exd4 {[%clk
00:11:24]} {[%emt 00:00:47]} 20. Nxd4 {[%clk 00:11:54]} {[%emt 00:00:44]} Bf8
{[%clk 00:09:11]} {[%emt 00:02:19]} 21. Qh4 {[%clk 00:10:45]} {[%emt 00:01:13]}
Bg6 {[%clk 00:09:14]} {[%emt 00:00:03]} 22. Bf4 {[%clk 00:10:19]} {[%emt
00:00:29]} Qb6 {[%clk 00:09:18]} {[%emt 00:00:02]} 23. b3 {[%clk 00:09:59]}
{[%emt 00:00:25]} Rad8 {[%clk 00:08:47]} {[%emt 00:00:36]} 24. Be3 {[%clk
00:09:54]} {[%emt 00:00:10]} Qc7 {[%clk 00:08:32]} {[%emt 00:00:21]} 25. Rfe1
{[%clk 00:09:20]} {[%emt 00:00:39]} Re4 {[%clk 00:08:07]} {[%emt 00:00:30]} 26.
Qg3 {[%clk 00:06:49]} {[%emt 00:02:35]} Bd6 {[%clk 00:07:59]} {[%emt 00:00:14]}
27. Qf3 {[%clk 00:06:29]} {[%emt 00:00:25]} Rde8 {[%clk 00:07:45]} {[%emt
00:00:20]} 28. Bd2 {[%clk 00:06:19]} {[%emt 00:00:14]} Qe7 {[%clk 00:07:10]}
{[%emt 00:00:40]} 29. Rxe4 {[%clk 00:05:58]} {[%emt 00:00:27]} Bxe4 {[%clk
00:07:12]} {[%emt 00:00:03]} 30. Qe3 {[%clk 00:05:25]} {[%emt 00:00:38]} Qe5
{[%clk 00:06:52]} {[%emt 00:00:25]} 31. f4 {[%clk 00:05:18]} {[%emt 00:00:12]}
Qd5 {[%clk 00:06:35]} {[%emt 00:00:21]} 32. c4 {[%clk 00:04:52]} {[%emt
00:00:32]} Qh5 {[%clk 00:05:44]} {[%emt 00:00:56]} 33. g4 {[%clk 00:04:24]}
{[%emt 00:00:32]} Qh4 {[%clk 00:05:20]} {[%emt 00:00:29]} 34. Nf5 {[%clk
00:04:02]} {[%emt 00:00:27]} Qd8 {[%clk 00:04:57]} {[%emt 00:00:28]} 35. Nxd6
{[%clk 00:03:23]} {[%emt 00:00:44]} Qxd6 {[%clk 00:05:00]} {[%emt 00:00:02]} 36.
Bxa5 {[%clk 00:03:25]} {[%emt 00:00:04]} Re6 {[%clk 00:04:21]} {[%emt
00:00:44]} 37. Qb6 {[%clk 00:02:34]} {[%emt 00:00:56]} Re8 {[%clk 00:03:51]}
{[%emt 00:00:35]} 38. Qf2 {[%clk 00:01:44]} {[%emt 00:00:55]} c5 {[%clk
00:03:41]} {[%emt 00:00:15]} 39. Bc3 {[%clk 00:01:40]} {[%emt 00:00:08]} Qd3
{[%clk 00:03:35]} {[%emt 00:00:12]} 40. Be5 {[%clk 00:01:01]} {[%emt 00:00:43]}
Qxh3 {[%clk 00:03:16]} {[%emt 00:00:24]} 41. Qe2 {[%clk 00:00:59]} {[%emt
00:00:07]} Bf3 {[%clk 00:02:55]} {[%emt 00:00:26]} 42. Qh2 {[%clk 00:00:53]}
{[%emt 00:00:11]} Qxg4+ {[%clk 00:02:56]} {[%emt 00:00:04]} 43. Kf2 {[%clk
00:00:57]} Bd1 {[%clk 00:02:36]} {[%emt 00:00:27]} 44. Ke1 {[%clk 00:00:41]}
{[%emt 00:00:20]} Bxb3 {[%clk 00:02:30]} {[%emt 00:00:11]} 45. Kd2 {[%clk
00:00:45]} {[%emt 00:00:02]} Rxe5 {[%clk 00:02:11]} {[%emt 00:00:24]} 46. fxe5
{[%clk 00:00:36]} {[%emt 00:00:14]} Qd4+ {[%clk 00:02:15]} {[%emt 00:00:01]} 47.
Ke2 {[%clk 00:00:31]} {[%emt 00:00:06]} Bxc4+ {[%clk 00:02:09]} {[%emt
00:00:15]} 48. Kf3 {[%clk 00:00:33]} {[%emt 00:00:01]} Bd5+ {[%clk 00:02:12]}
{[%emt 00:00:04]} 49. Kg3 {[%clk 00:00:29]} {[%emt 00:00:07]} Qxe5+ {[%clk
00:02:03]} {[%emt 00:00:16]} 50. Kh3 {[%clk 00:00:33]} Be6+ {[%clk 00:02:07]}
51. Kg2 {[%clk 00:00:35]} {[%emt 00:00:03]} Bd5+ {[%clk 00:01:54]} {[%emt
00:00:19]} 52. Kh3 {[%clk 00:00:36]} {[%emt 00:00:04]} Qh5+ {[%clk 00:01:38]}
{[%emt 00:00:21]} 53. Kg3 {[%clk 00:00:31]} {[%emt 00:00:11]} Qe5+ {[%clk
00:01:31]} {[%emt 00:00:12]} 54. Kh3 {[%clk 00:00:34]} {[%emt 00:00:02]} Be6+
{[%clk 00:00:52]} {[%emt 00:00:44]} 55. Kg2 {[%clk 00:00:38]} {[%emt 00:00:01]}
Qb2+ {[%clk 00:00:54]} {[%emt 00:00:03]} 56. Kg3 {[%clk 00:00:36]} {[%emt
00:00:07]} Qxa1 {[%clk 00:00:56]} {[%emt 00:00:03]} 57. Qd2 {[%clk 00:00:25]}
{[%emt 00:00:14]} Qe5+ {[%clk 00:00:56]} {[%emt 00:00:06]} 58. Kf3 {[%clk
00:00:27]} {[%emt 00:00:03]} Qd5+ {[%clk 00:00:59]} {[%emt 00:00:02]} 59. Qxd5
{[%clk 00:00:30]} {[%emt 00:00:02]} Bxd5+ {[%clk 00:01:02]} {[%emt 00:00:03]}
0-1

[Event "Goteborg Open 2024"]
[Site "Goteborgs Schackcentrum, Vegatan 20, Gothenburg, Sweden"]
[Date "2024.08.02"]
[Round "2.13"]
[White "Dahlin, Emil"]
[Black "Kring, Stephan"]
[Result "0-1"]
[TimeControl "15 minutes + 5 seconds per move from move one (Round 1 - 4) / 90 minutes + 30 seconds per move from move one (Round 5 - 8)"]
[WhiteFideId "1771035"]
[BlackFideId "1711687"]
[WhiteElo "1719"]
[BlackElo "2057"]

1. e4 {[%clk 00:15:09]} e5 {[%clk 00:15:09]} 2. Nf3 {[%clk 00:15:10]} {[%emt
00:00:05]} Nc6 {[%clk 00:15:12]} {[%emt 00:00:02]} 3. Bc4 {[%clk 00:15:14]}
{[%emt 00:00:02]} Bc5 {[%clk 00:15:15]} {[%emt 00:00:01]} 4. Nc3 {[%clk
00:15:15]} {[%emt 00:00:05]} d6 {[%clk 00:15:15]} {[%emt 00:00:04]} 5. h3
{[%clk 00:15:18]} {[%emt 00:00:02]} a6 {[%clk 00:15:13]} {[%emt 00:00:07]} 6.
d3 {[%clk 00:15:21]} {[%emt 00:00:01]} Nf6 {[%clk 00:15:12]} {[%emt 00:00:06]}
7. Bg5 {[%clk 00:15:25]} {[%emt 00:00:02]} Be6 {[%clk 00:15:08]} {[%emt
00:00:09]} 8. Bb3 {[%clk 00:15:28]} {[%emt 00:00:02]} h6 {[%clk 00:15:02]}
{[%emt 00:00:11]} 9. Bh4 {[%clk 00:15:31]} {[%emt 00:00:02]} g5 {[%clk
00:14:30]} {[%emt 00:00:36]} 10. Bg3 {[%clk 00:15:35]} {[%emt 00:00:02]} Qd7
{[%clk 00:14:19]} {[%emt 00:00:16]} 11. Qd2 {[%clk 00:15:30]} {[%emt 00:00:10]}
O-O-O {[%clk 00:13:24]} {[%emt 00:01:00]} 12. O-O-O {[%clk 00:15:29]} {[%emt
00:00:06]} Bxb3 {[%clk 00:13:03]} {[%emt 00:00:26]} 13. axb3 {[%clk 00:15:29]}
{[%emt 00:00:04]} Qe6 {[%clk 00:12:50]} {[%emt 00:00:17]} 14. Rhe1 {[%clk
00:14:45]} {[%emt 00:00:50]} Bb4 {[%clk 00:12:30]} {[%emt 00:00:25]} 15. Kb1
{[%clk 00:14:35]} {[%emt 00:00:15]} Nh5 {[%clk 00:12:11]} {[%emt 00:00:24]} 16.
Bh2 {[%clk 00:14:08]} {[%emt 00:00:32]} f5 {[%clk 00:11:12]} {[%emt 00:01:04]}
17. exf5 {[%clk 00:12:19]} {[%emt 00:01:53]} Qxf5 {[%clk 00:11:04]} {[%emt
00:00:14]} 18. Qe2 {[%clk 00:12:17]} {[%emt 00:00:07]} Nf6 {[%clk 00:10:23]}
{[%emt 00:00:45]} 19. h4 {[%clk 00:10:19]} {[%emt 00:02:04]} g4 {[%clk
00:09:46]} {[%emt 00:00:42]} 20. Nd2 {[%clk 00:10:10]} {[%emt 00:00:13]} Nd4
{[%clk 00:09:32]} {[%emt 00:00:20]} 21. Qf1 {[%clk 00:09:59]} {[%emt 00:00:16]}
Rhf8 {[%clk 00:09:25]} {[%emt 00:00:12]} 22. Na2 {[%clk 00:09:43]} {[%emt
00:00:22]} Bc5 {[%clk 00:09:14]} {[%emt 00:00:15]} 23. f3 {[%clk 00:09:14]}
{[%emt 00:00:34]} Nd5 {[%clk 00:08:38]} {[%emt 00:00:40]} 24. c3 {[%clk
00:07:54]} {[%emt 00:01:27]} Ne6 {[%clk 00:07:48]} {[%emt 00:00:54]} 25. c4
{[%clk 00:07:52]} {[%emt 00:00:07]} Ne3 {[%clk 00:07:41]} {[%emt 00:00:12]} 26.
Rxe3 {[%clk 00:07:14]} {[%emt 00:00:43]} Bxe3 {[%clk 00:07:43]} {[%emt
00:00:03]} 27. Qe2 {[%clk 00:07:08]} {[%emt 00:00:10]} Bb6 {[%clk 00:06:15]}
{[%emt 00:01:34]} 28. fxg4 {[%clk 00:07:07]} {[%emt 00:00:06]} Qf2 {[%clk
00:06:19]} {[%emt 00:00:01]} 29. Qxf2 {[%clk 00:06:40]} {[%emt 00:00:32]} Rxf2
{[%clk 00:06:22]} {[%emt 00:00:02]} 30. Nf1 {[%clk 00:06:25]} {[%emt 00:00:20]}
Rxg2 {[%clk 00:06:17]} {[%emt 00:00:11]} 31. Bg3 {[%clk 00:06:27]} {[%emt
00:00:02]} Rf8 {[%clk 00:06:03]} {[%emt 00:00:18]} 32. Nc3 {[%clk 00:06:05]}
{[%emt 00:00:28]} Rxf1 {[%clk 00:05:56]} {[%emt 00:00:12]} 33. Rxf1 {[%clk
00:06:05]} {[%emt 00:00:04]} Rxg3 {[%clk 00:06:00]} {[%emt 00:00:01]} 34. Rf6
{[%clk 00:06:06]} {[%emt 00:00:05]} Nf4 {[%clk 00:05:52]} {[%emt 00:00:12]} 35.
Rxh6 {[%clk 00:05:54]} {[%emt 00:00:18]} Rxg4 {[%clk 00:05:51]} {[%emt
00:00:06]} 36. Rh8+ {[%clk 00:05:40]} {[%emt 00:00:18]} Kd7 {[%clk 00:05:54]}
{[%emt 00:00:03]} 37. Nd5 {[%clk 00:05:34]} {[%emt 00:00:11]} Rg1+ {[%clk
00:05:38]} {[%emt 00:00:21]} 38. Kc2 {[%clk 00:05:36]} {[%emt 00:00:03]} Rg2+
{[%clk 00:05:29]} {[%emt 00:00:14]} 39. Kb1 {[%clk 00:05:22]} {[%emt 00:00:18]}
Kc6 {[%clk 00:04:28]} {[%emt 00:01:06]} 40. Nxb6 {[%clk 00:04:38]} {[%emt
00:00:51]} Kxb6 {[%clk 00:04:29]} {[%emt 00:00:03]} 41. h5 {[%clk 00:04:41]}
{[%emt 00:00:01]} Nxd3 {[%clk 00:04:27]} {[%emt 00:00:08]} 42. h6 {[%clk
00:04:44]} {[%emt 00:00:01]} Rxb2+ {[%clk 00:04:27]} {[%emt 00:00:06]} 43. Ka1
{[%clk 00:04:49]} {[%emt 00:00:01]} Rh2 {[%clk 00:04:30]} {[%emt 00:00:01]} 44.
h7 {[%clk 00:04:46]} {[%emt 00:00:08]} e4 {[%clk 00:04:22]} {[%emt 00:00:13]}
45. b4 {[%clk 00:04:19]} {[%emt 00:00:33]} Nxb4 {[%clk 00:04:20]} {[%emt
00:00:06]} 46. Kb1 {[%clk 00:04:03]} {[%emt 00:00:21]} e3 {[%clk 00:04:22]}
{[%emt 00:00:02]} 47. Re8 {[%clk 00:04:01]} {[%emt 00:00:07]} Rxh7 {[%clk
00:04:21]} {[%emt 00:00:07]} 48. Rxe3 {[%clk 00:04:03]} {[%emt 00:00:02]} Rh2
{[%clk 00:04:21]} {[%emt 00:00:06]} 49. Rb3 {[%clk 00:04:06]} {[%emt 00:00:02]}
Kc5 {[%clk 00:04:24]} {[%emt 00:00:02]} 50. Rc3 {[%clk 00:04:03]} {[%emt
00:00:07]} a5 {[%clk 00:04:28]} {[%emt 00:00:02]} 51. Kc1 {[%clk 00:04:04]}
{[%emt 00:00:04]} c6 {[%clk 00:04:31]} {[%emt 00:00:03]} 52. Kb1 {[%clk
00:04:02]} {[%emt 00:00:06]} a4 {[%clk 00:04:33]} {[%emt 00:00:03]} 53. Ra3
{[%clk 00:04:05]} {[%emt 00:00:02]} b5 {[%clk 00:04:37]} {[%emt 00:00:01]} 54.
cxb5 {[%clk 00:04:04]} {[%emt 00:00:06]} Kxb5 {[%clk 00:04:38]} {[%emt
00:00:04]} 55. Rc3 {[%clk 00:04:05]} {[%emt 00:00:03]} c5 {[%clk 00:04:42]}
{[%emt 00:00:03]} 56. Ra3 {[%clk 00:04:01]} {[%emt 00:00:08]} d5 {[%clk
00:04:44]} {[%emt 00:00:02]} 57. Rf3 {[%clk 00:04:01]} {[%emt 00:00:05]} d4
{[%clk 00:04:47]} {[%emt 00:00:02]} 58. Ra3 {[%clk 00:03:53]} {[%emt 00:00:14]}
d3 {[%clk 00:04:36]} {[%emt 00:00:16]} 59. Kc1 {[%clk 00:03:39]} {[%emt
00:00:19]} c4 {[%clk 00:04:32]} {[%emt 00:00:08]} 60. Rc3 {[%clk 00:03:39]}
{[%emt 00:00:05]} Na2+ {[%clk 00:04:32]} {[%emt 00:00:05]} 61. Kd1 {[%clk
00:03:36]} {[%emt 00:00:07]} Nxc3+ {[%clk 00:04:35]} {[%emt 00:00:04]} 62. Kc1
{[%clk 00:03:40]} {[%emt 00:00:01]} Rc2# {[%emt 00:00:02]} 0-1

[Event "Goteborg Open 2024"]
[Site "Goteborgs Schackcentrum, Vegatan 20, Gothenburg, Sweden"]
[Date "2024.08.02"]
[Round "2.14"]
[White "Mohammed, Safian Haj"]
[Black "Bergdahl, Martin"]
[Result "0-1"]
[TimeControl "15 minutes + 5 seconds per move from move one (Round 1 - 4) / 90 minutes + 30 seconds per move from move one (Round 5 - 8)"]
[WhiteFideId "1729276"]
[BlackFideId "1782231"]
[WhiteElo "1890"]
[BlackElo "1711"]

1. e4 {[%clk 00:15:10]} {[%emt 00:00:01]} c6 {[%clk 00:15:09]} {[%emt
00:00:01]} 2. d4 {[%clk 00:15:13]} d5 {[%clk 00:15:09]} {[%emt 00:00:06]} 3. e5
{[%clk 00:15:16]} {[%emt 00:00:02]} c5 {[%clk 00:15:12]} {[%emt 00:00:02]} 4.
Nf3 {[%clk 00:15:14]} {[%emt 00:00:07]} Nc6 {[%clk 00:15:14]} {[%emt 00:00:03]}
5. dxc5 {[%clk 00:15:15]} {[%emt 00:00:03]} Bg4 {[%clk 00:15:17]} {[%emt
00:00:02]} 6. c3 {[%clk 00:15:19]} {[%emt 00:00:02]} e6 {[%clk 00:15:17]}
{[%emt 00:00:05]} 7. Be3 {[%clk 00:15:15]} {[%emt 00:00:09]} a6 {[%clk
00:15:14]} {[%emt 00:00:08]} 8. Bd4 {[%clk 00:14:12]} {[%emt 00:01:07]} Nge7
{[%clk 00:15:03]} {[%emt 00:00:15]} 9. Nbd2 {[%clk 00:12:03]} {[%emt 00:02:15]}
Nf5 {[%clk 00:15:01]} {[%emt 00:00:07]} 10. Nb3 {[%clk 00:12:07]} {[%emt
00:00:02]} Qc7 {[%clk 00:14:25]} {[%emt 00:00:41]} 11. h3 {[%clk 00:09:38]}
{[%emt 00:02:33]} Bxf3 {[%clk 00:14:20]} {[%emt 00:00:09]} 12. Qxf3 {[%clk
00:09:25]} {[%emt 00:00:20]} Nxe5 {[%clk 00:14:17]} {[%emt 00:00:06]} 13. Qe2
{[%clk 00:08:23]} {[%emt 00:01:08]} Nd7 {[%clk 00:14:05]} {[%emt 00:00:17]} 14.
g4 {[%clk 00:07:57]} {[%emt 00:00:31]} Ne7 {[%clk 00:13:26]} {[%emt 00:00:44]}
15. Bg2 {[%clk 00:07:36]} {[%emt 00:00:26]} Ng6 {[%clk 00:13:05]} {[%emt
00:00:27]} 16. Qe3 {[%clk 00:05:07]} {[%emt 00:02:33]} Qf4 {[%clk 00:12:52]}
{[%emt 00:00:18]} 17. O-O {[%clk 00:03:51]} {[%emt 00:01:22]} h5 {[%clk
00:12:26]} {[%emt 00:00:30]} 18. Qxf4 {[%clk 00:03:43]} {[%emt 00:00:13]} Nxf4
{[%clk 00:12:24]} {[%emt 00:00:06]} 19. g5 {[%clk 00:03:02]} {[%emt 00:00:47]}
Nd3 {[%clk 00:11:44]} {[%emt 00:00:46]} 20. f4 {[%clk 00:02:10]} {[%emt
00:00:56]} N3xc5 {[%clk 00:10:41]} {[%emt 00:01:07]} 21. f5 {[%clk 00:01:55]}
{[%emt 00:00:21]} Nxb3 {[%clk 00:09:50]} {[%emt 00:00:56]} 22. fxe6 {[%clk
00:01:25]} {[%emt 00:00:35]} fxe6 {[%clk 00:09:30]} {[%emt 00:00:25]} 23. axb3
{[%clk 00:01:24]} {[%emt 00:00:06]} Bc5 {[%clk 00:09:21]} {[%emt 00:00:14]} 24.
Rae1 {[%clk 00:01:11]} {[%emt 00:00:19]} Bxd4+ {[%clk 00:07:46]} {[%emt
00:01:39]} 25. Rxe6+ {[%clk 00:01:03]} {[%emt 00:00:14]} Bc5+ {[%emt 00:00:42]}
26. Re2+ {[%emt 00:00:01]} Bd4+ {[%clk 00:08:45]} {[%emt 00:00:04]} 27. Ree1+
0-1

[Event "Goteborg Open 2024"]
[Site "Goteborgs Schackcentrum, Vegatan 20, Gothenburg, Sweden"]
[Date "2024.08.02"]
[Round "2.15"]
[White "Hitcher, Oscar"]
[Black "Westlund, Tim"]
[Result "0-1"]
[TimeControl "15 minutes + 5 seconds per move from move one (Round 1 - 4) / 90 minutes + 30 seconds per move from move one (Round 5 - 8)"]
[WhiteFideId "1746901"]
[BlackFideId "1754718"]
[WhiteElo "1679"]
[BlackElo "1886"]

1. e4 {[%clk 00:15:03]} {[%emt 00:00:07]} e5 {[%clk 00:15:09]} {[%emt
00:00:01]} 2. d4 {[%clk 00:14:57]} {[%emt 00:00:11]} exd4 {[%clk 00:15:11]}
{[%emt 00:00:02]} 3. c3 {[%clk 00:15:00]} {[%emt 00:00:03]} d5 {[%clk
00:15:12]} {[%emt 00:00:03]} 4. exd5 {[%clk 00:14:32]} {[%emt 00:00:33]} Qxd5
{[%clk 00:15:14]} {[%emt 00:00:03]} 5. Qxd4 {[%clk 00:13:13]} {[%emt 00:01:24]}
Qxd4 {[%clk 00:15:08]} {[%emt 00:00:11]} 6. cxd4 {[%clk 00:13:13]} {[%emt
00:00:06]} Nf6 {[%clk 00:15:08]} {[%emt 00:00:04]} 7. Nf3 {[%clk 00:12:10]}
{[%emt 00:01:09]} Nc6 {[%clk 00:14:26]} {[%emt 00:00:46]} 8. Bd3 {[%clk
00:11:13]} {[%emt 00:01:02]} Nb4 {[%clk 00:13:08]} {[%emt 00:01:23]} 9. Kd2
{[%clk 00:09:57]} {[%emt 00:01:21]} Nxd3 {[%clk 00:13:07]} {[%emt 00:00:07]} 10.
Kxd3 {[%clk 00:09:53]} {[%emt 00:00:07]} Bf5+ {[%clk 00:13:06]} {[%emt
00:00:06]} 11. Ke2 {[%clk 00:08:44]} {[%emt 00:01:15]} O-O-O {[%clk 00:13:04]}
{[%emt 00:00:07]} 12. Be3 {[%clk 00:08:12]} {[%emt 00:00:37]} Nd5 {[%clk
00:12:15]} {[%emt 00:00:54]} 13. Nc3 {[%clk 00:07:25]} {[%emt 00:00:52]} Nxe3
{[%clk 00:12:13]} {[%emt 00:00:07]} 14. fxe3 {[%clk 00:07:15]} {[%emt
00:00:14]} h6 {[%clk 00:12:13]} {[%emt 00:00:05]} 15. Ne5 {[%clk 00:06:34]}
{[%emt 00:00:46]} Be6 {[%clk 00:11:18]} {[%emt 00:01:01]} 16. b3 {[%clk
00:05:24]} {[%emt 00:01:15]} Bd6 {[%clk 00:11:02]} {[%emt 00:00:20]} 17. Nc4
{[%clk 00:04:34]} {[%emt 00:00:56]} Be7 {[%clk 00:10:13]} {[%emt 00:00:55]} 18.
h3 {[%clk 00:04:16]} {[%emt 00:00:23]} Bf6 {[%clk 00:10:06]} {[%emt 00:00:12]}
19. Rad1 {[%clk 00:04:00]} {[%emt 00:00:19]} Rhe8 {[%clk 00:10:05]} {[%emt
00:00:06]} 20. Kd2 {[%clk 00:02:50]} {[%emt 00:01:16]} Bxc4 {[%clk 00:09:13]}
{[%emt 00:00:58]} 21. bxc4 {[%clk 00:02:49]} {[%emt 00:00:06]} Bg5 {[%clk
00:09:06]} {[%emt 00:00:11]} 22. Rhe1 {[%clk 00:02:36]} {[%emt 00:00:18]} Rxd4+
{[%clk 00:09:07]} {[%emt 00:00:04]} 23. Kc2 {[%clk 00:02:28]} {[%emt 00:00:13]}
Rxc4 {[%clk 00:08:49]} {[%emt 00:00:24]} 24. Kb3 {[%clk 00:02:05]} {[%emt
00:00:28]} Rc6 {[%clk 00:08:46]} {[%emt 00:00:08]} 25. e4 {[%clk 00:01:50]}
{[%emt 00:00:19]} Rce6 {[%clk 00:07:59]} {[%emt 00:00:52]} 26. Rd4 {[%clk
00:01:27]} {[%emt 00:00:28]} Bf6 {[%clk 00:07:26]} {[%emt 00:00:39]} 27. Rc4
{[%clk 00:01:19]} {[%emt 00:00:11]} Bxc3 {[%clk 00:07:27]} {[%emt 00:00:04]} 28.
Kxc3 {[%clk 00:01:21]} {[%emt 00:00:03]} f5 {[%clk 00:07:19]} {[%emt 00:00:14]}
29. Rf1 {[%clk 00:01:13]} {[%emt 00:00:13]} fxe4 {[%clk 00:07:02]} {[%emt
00:00:22]} 30. Rf7 {[%clk 00:01:14]} {[%emt 00:00:04]} R6e7 {[%clk 00:07:00]}
{[%emt 00:00:07]} 31. Rxe7 {[%clk 00:01:02]} {[%emt 00:00:17]} Rxe7 {[%clk
00:07:03]} {[%emt 00:00:02]} 32. Ra4 {[%clk 00:00:56]} {[%emt 00:00:10]} e3
{[%clk 00:06:58]} {[%emt 00:00:12]} 33. Rf4 {[%clk 00:00:34]} {[%emt 00:00:25]}
e2 {[%clk 00:07:00]} {[%emt 00:00:04]} 34. Rf8+ {[%clk 00:00:28]} {[%emt
00:00:11]} Kd7 {[%clk 00:07:04]} {[%emt 00:00:02]} 0-1